[Event "*** Titled Tuesday Blitz"]
[Site "Chess.com"]
[Date "2018.11.06"]
[Round "3"]
[White "FMJoseHerrera"]
[Black "Lovkov_Roman"]
[Result "0-1"]
[WhiteElo "2519"]
[BlackElo "2607"]
[TimeControl "180+2"]
[EndTime "13:40:08 PST"]
[Termination "Lovkov_Roman won by checkmate"]

1. Nf3 {[%clk 0:03:01.9]} 1... d5 {[%clk 0:03:00.7]} 2. g3 {[%clk 0:03:02.7]}
2... Nf6 {[%clk 0:03:00.7]} 3. Bg2 {[%clk 0:03:04.3]} 3... Nbd7 {[%clk 0:03:01]}
4. O-O {[%clk 0:03:05.2]} 4... e5 {[%clk 0:03:02.3]} 5. c4 {[%clk 0:03:05.8]}
5... e4 {[%clk 0:03:01.6]} 6. Ne1 {[%clk 0:03:06.1]} 6... c6 {[%clk 0:03:01]} 7.
cxd5 {[%clk 0:03:07.1]} 7... cxd5 {[%clk 0:03:02.4]} 8. Nc3 {[%clk 0:03:08.5]}
8... h5 {[%clk 0:03:02.1]} 9. d3 {[%clk 0:03:09.5]} 9... h4 {[%clk 0:02:51.8]}
10. dxe4 {[%clk 0:03:10.1]} 10... hxg3 {[%clk 0:02:53]} 11. hxg3 {[%clk
0:03:10.4]} 11... dxe4 {[%clk 0:02:42.4]} 12. Nxe4 {[%clk 0:03:11.5]} 12... Nxe4
{[%clk 0:02:38.7]} 13. Bxe4 {[%clk 0:03:12.5]} 13... Qf6 {[%clk 0:02:33.7]} 14.
Qa4 {[%clk 0:03:02.6]} 14... Bc5 {[%clk 0:02:24.7]} 15. Bg2 {[%clk 0:02:58.8]}
15... Qe5 {[%clk 0:01:56.8]} 16. Nf3 {[%clk 0:02:45.9]} 16... Qxg3 {[%clk
0:01:48.5]} 17. Qe4+ {[%clk 0:02:36.2]} 17... Kf8 {[%clk 0:01:46.2]} 18. Bf4
{[%clk 0:02:37.3]} 18... Qg6 {[%clk 0:01:34.9]} 19. Qxg6 {[%clk 0:02:38.2]}
19... fxg6 {[%clk 0:01:36.8]} 20. Rac1 {[%clk 0:02:37.5]} 20... Rh5 {[%clk
0:01:34.7]} 21. Ng5 {[%clk 0:02:28.6]} 21... Bb6 {[%clk 0:01:22]} 22. Bf3 {[%clk
0:02:23.9]} 22... Rh4 {[%clk 0:01:05.9]} 23. Bd6+ {[%clk 0:02:24]} 23... Kg8
{[%clk 0:01:03.1]} 24. Kg2 {[%clk 0:02:15]} 24... Nf6 {[%clk 0:01:01.2]} 25. Bg3
{[%clk 0:02:06.9]} 25... Rd4 {[%clk 0:00:56.6]} 26. e3 {[%clk 0:02:06.4]} 26...
Rd2 {[%clk 0:00:55.8]} 27. Rfd1 {[%clk 0:01:56.2]} 27... Bxe3 {[%clk 0:00:55.6]}
28. Ne4 {[%clk 0:01:38.5]} 28... Rxd1 {[%clk 0:00:37.3]} 29. Rxd1 {[%clk
0:01:38.4]} 29... Bb6 {[%clk 0:00:38.1]} 30. Ng5 {[%clk 0:01:19]} 30... Bg4
{[%clk 0:00:32.8]} 31. Bxg4 {[%clk 0:01:07.4]} 31... Nxg4 {[%clk 0:00:34.7]} 32.
Rd7 {[%clk 0:01:08.6]} 32... Rf8 {[%clk 0:00:28.4]} 33. Rxb7 {[%clk 0:01:00.7]}
33... Nxf2 {[%clk 0:00:28.8]} 34. Ne6 {[%clk 0:01:01.6]} 34... Rf6 {[%clk
0:00:27.7]} 35. Rb8+ {[%clk 0:00:29.3]} 35... Kf7 {[%clk 0:00:27.8]} 36. Ng5+
{[%clk 0:00:27.8]} 36... Ke7 {[%clk 0:00:29]} 37. Rb7+ {[%clk 0:00:29]} 37...
Ke8 {[%clk 0:00:29.5]} 38. Rxg7 {[%clk 0:00:29.4]} 38... Nd1 {[%clk 0:00:29.7]}
39. Rg8+ {[%clk 0:00:29.9]} 39... Kd7 {[%clk 0:00:30.5]} 40. Rg7+ {[%clk
0:00:30.1]} 40... Kc6 {[%clk 0:00:31]} 41. b3 {[%clk 0:00:31.2]} 41... Ne3+
{[%clk 0:00:31.7]} 42. Kh3 {[%clk 0:00:32.4]} 42... Kb5 {[%clk 0:00:29.5]} 43.
Ne4 {[%clk 0:00:30.7]} 43... Re6 {[%clk 0:00:28.4]} 44. Nd6+ {[%clk 0:00:28.1]}
44... Kb4 {[%clk 0:00:25.9]} 45. Nc8 {[%clk 0:00:29.5]} 45... Bd4 {[%clk
0:00:25.2]} 46. Rd7 {[%clk 0:00:28]} 46... Nf5 {[%clk 0:00:23.1]} 47. Bf4 {[%clk
0:00:19.6]} 47... Re4 {[%clk 0:00:22.1]} 48. Bd2+ {[%clk 0:00:18.7]} 48... Ka3
{[%clk 0:00:23.1]} 49. Nxa7 {[%clk 0:00:19.7]} 49... Kxa2 {[%clk 0:00:23.6]} 50.
Nb5 {[%clk 0:00:20.1]} 50... Be5 {[%clk 0:00:22.3]} 51. Bc3 {[%clk 0:00:19.1]}
51... Re3+ {[%clk 0:00:21.8]} 52. Kg4 {[%clk 0:00:19.9]} 52... Rg3# {[%clk
0:00:22.8]} 0-1

[Event "*** Titled Tuesday Blitz"]
[Site "Chess.com"]
[Date "2018.11.06"]
[Round "3"]
[White "nitpicker"]
[Black "nochewycandy"]
[Result "1-0"]
[WhiteElo "2182"]
[BlackElo "2169"]
[TimeControl "180+2"]
[EndTime "13:40:13 PST"]
[Termination "nitpicker won by checkmate"]

1. d4 {[%clk 0:03:01.9]} 1... d5 {[%clk 0:03:00.5]} 2. c4 {[%clk 0:03:02.6]}
2... c6 {[%clk 0:03:01.9]} 3. Nf3 {[%clk 0:03:03.4]} 3... Nf6 {[%clk 0:03:02.4]}
4. Nc3 {[%clk 0:03:02.6]} 4... a6 {[%clk 0:03:03.5]} 5. c5 {[%clk 0:03:00.1]}
5... g6 {[%clk 0:03:02.4]} 6. Bf4 {[%clk 0:02:59.7]} 6... Nh5 {[%clk 0:03:01.3]}
7. e3 {[%clk 0:03:00.4]} 7... Bg7 {[%clk 0:02:58.8]} 8. Bd3 {[%clk 0:03:00.2]}
8... O-O {[%clk 0:02:56.7]} 9. O-O {[%clk 0:03:00.7]} 9... Bg4 {[%clk
0:02:56.3]} 10. Be2 {[%clk 0:02:55]} 10... Nd7 {[%clk 0:02:53.7]} 11. h3 {[%clk
0:02:51.4]} 11... Nxf4 {[%clk 0:02:52.2]} 12. exf4 {[%clk 0:02:50.8]} 12... Bf5
{[%clk 0:02:53.9]} 13. g4 {[%clk 0:02:45.7]} 13... Be4 {[%clk 0:02:54.6]} 14.
Nh2 {[%clk 0:02:36.7]} 14... b6 {[%clk 0:02:27.9]} 15. f3 {[%clk 0:01:57.4]}
15... bxc5 {[%clk 0:02:26.9]} 16. fxe4 {[%clk 0:01:58.6]} 16... cxd4 {[%clk
0:02:28.1]} 17. Na4 {[%clk 0:01:46]} 17... dxe4 {[%clk 0:02:28.2]} 18. Bc4
{[%clk 0:01:39.7]} 18... e5 {[%clk 0:02:20.4]} 19. f5 {[%clk 0:01:35.5]} 19...
Qh4 {[%clk 0:02:12.8]} 20. fxg6 {[%clk 0:01:26.3]} 20... hxg6 {[%clk 0:02:11.1]}
21. Qb3 {[%clk 0:01:25.2]} 21... Nf6 {[%clk 0:02:04.5]} 22. Kg2 {[%clk
0:01:16.4]} 22... d3 {[%clk 0:01:55.1]} 23. Qd1 {[%clk 0:01:07.4]} 23... Nd5
{[%clk 0:01:45.8]} 24. Bxd5 {[%clk 0:01:02.4]} 24... cxd5 {[%clk 0:01:47.7]} 25.
Qe1 {[%clk 0:00:54.4]} 25... Qe7 {[%clk 0:01:29.5]} 26. Qe3 {[%clk 0:00:38.6]}
26... f5 {[%clk 0:01:26.9]} 27. gxf5 {[%clk 0:00:35.8]} 27... gxf5 {[%clk
0:01:27.1]} 28. Kh1 {[%clk 0:00:30.9]} 28... f4 {[%clk 0:01:24.6]} 29. Qd2
{[%clk 0:00:22.8]} 29... Rab8 {[%clk 0:01:17.3]} 30. Rg1 {[%clk 0:00:22.5]}
30... Kh8 {[%clk 0:01:13]} 31. Qd1 {[%clk 0:00:20.6]} 31... Qh4 {[%clk
0:00:55.4]} 32. Qg4 {[%clk 0:00:15.6]} 32... Qxg4 {[%clk 0:00:56.5]} 33. Rxg4
{[%clk 0:00:16.8]} 33... e3 {[%clk 0:00:52]} 34. Rag1 {[%clk 0:00:17.5]} 34...
Rf7 {[%clk 0:00:47.2]} 35. Nf3 {[%clk 0:00:17]} 35... e4 {[%clk 0:00:44.8]} 36.
Rh4+ {[%clk 0:00:17.3]} 36... Kg8 {[%clk 0:00:45.1]} 37. Ne5 {[%clk 0:00:16.2]}
37... Rf5 {[%clk 0:00:38.8]} 38. Rhg4 {[%clk 0:00:16.5]} 38... Rb7 {[%clk
0:00:26.9]} 39. Nc5 {[%clk 0:00:17.4]} 39... Re7 {[%clk 0:00:23.1]} 40. Nc6
{[%clk 0:00:15.5]} 40... Rc7 {[%clk 0:00:21.6]} 41. Ne6 {[%clk 0:00:16.6]} 41...
Rff7 {[%clk 0:00:14.1]} 42. Ne5 {[%clk 0:00:14.1]} 42... Rfe7 {[%clk 0:00:11.3]}
43. Nxc7 {[%clk 0:00:14.9]} 43... Rxc7 {[%clk 0:00:13.2]} 44. Rxf4 {[%clk
0:00:12.4]} 44... Kh7 {[%clk 0:00:11.9]} 45. Rh4+ {[%clk 0:00:09.5]} 45... Bh6
{[%clk 0:00:12.8]} 46. Rg6 {[%clk 0:00:08.5]} 46... Rc1+ {[%clk 0:00:13.7]} 47.
Kg2 {[%clk 0:00:09]} 47... Rc2+ {[%clk 0:00:07.1]} 48. Kg3 {[%clk 0:00:10]}
48... Rc6 {[%clk 0:00:06.5]} 49. Rhxh6# {[%clk 0:00:10.3]} 1-0

[Event "*** Titled Tuesday Blitz"]
[Site "Chess.com"]
[Date "2018.11.06"]
[Round "3"]
[White "Alexander_Donchenko"]
[Black "eljanov"]
[Result "0-1"]
[WhiteElo "2739"]
[BlackElo "2819"]
[TimeControl "180+2"]
[EndTime "13:40:27 PST"]
[Termination "eljanov won by resignation"]

1. c4 {[%clk 0:03:01.9]} 1... Nf6 {[%clk 0:03:00.3]} 2. Nc3 {[%clk 0:03:02.8]}
2... e5 {[%clk 0:03:02]} 3. Nf3 {[%clk 0:03:03.6]} 3... Nc6 {[%clk 0:03:03.7]}
4. g3 {[%clk 0:03:03.7]} 4... Bb4 {[%clk 0:03:04]} 5. Bg2 {[%clk 0:03:04.8]}
5... O-O {[%clk 0:03:05.4]} 6. O-O {[%clk 0:03:05.8]} 6... d6 {[%clk 0:03:06.3]}
7. d3 {[%clk 0:03:03.8]} 7... Re8 {[%clk 0:03:07.8]} 8. Bg5 {[%clk 0:02:59.2]}
8... Bxc3 {[%clk 0:03:08.2]} 9. bxc3 {[%clk 0:03:00.2]} 9... h6 {[%clk
0:03:09.8]} 10. Be3 {[%clk 0:02:58.7]} 10... Ng4 {[%clk 0:03:07.1]} 11. Bd2
{[%clk 0:02:59.2]} 11... f5 {[%clk 0:03:08.2]} 12. Rb1 {[%clk 0:02:53.2]} 12...
Rb8 {[%clk 0:02:57.3]} 13. e4 {[%clk 0:01:55.4]} 13... fxe4 {[%clk 0:02:51.5]}
14. Nh4 {[%clk 0:01:55.4]} 14... Nf6 {[%clk 0:02:50.6]} 15. Qe1 {[%clk
0:01:37.3]} 15... g5 {[%clk 0:02:36.6]} 16. Bxe4 {[%clk 0:01:32.8]} 16... gxh4
{[%clk 0:02:31.7]} 17. Bxc6 {[%clk 0:01:32.5]} 17... Bh3 {[%clk 0:02:18]} 18.
Bg2 {[%clk 0:01:11.2]} 18... Bxg2 {[%clk 0:02:16.7]} 19. Kxg2 {[%clk 0:01:13.1]}
19... Qd7 {[%clk 0:02:09.5]} 20. Bxh6 {[%clk 0:01:12.4]} 20... e4 {[%clk
0:01:38.1]} 21. Qe3 {[%clk 0:01:05.5]} 21... Re5 {[%clk 0:01:39.3]} 22. Bf4
{[%clk 0:00:59.7]} 22... Ree8 {[%clk 0:01:09.2]} 23. Bg5 {[%clk 0:00:43.3]}
23... h3+ {[%clk 0:00:55.6]} 24. Kh1 {[%clk 0:00:39.5]} 24... Ng4 {[%clk
0:00:53.8]} 25. Qd4 {[%clk 0:00:37.3]} 25... exd3 {[%clk 0:00:50.2]} 26. Qxd3
{[%clk 0:00:32]} 26... Ne5 {[%clk 0:00:45]} 27. Qd5+ {[%clk 0:00:31.1]} 27...
Qf7 {[%clk 0:00:42.1]} 28. Be3 {[%clk 0:00:27.9]} 28... b6 {[%clk 0:00:40.5]}
29. Bd4 {[%clk 0:00:25]} 29... Nf3 {[%clk 0:00:34.5]} 30. Be3 {[%clk 0:00:19.1]}
30... Re5 {[%clk 0:00:29.5]} 31. Qxf7+ {[%clk 0:00:17.6]} 31... Kxf7 {[%clk
0:00:30.1]} 32. Rfd1 {[%clk 0:00:17.5]} 32... Re4 {[%clk 0:00:27.4]} 33. Rb5
{[%clk 0:00:17.4]} 33... Ne5 {[%clk 0:00:27.2]} 34. Bd4 {[%clk 0:00:17.2]} 34...
c5 {[%clk 0:00:21.4]} 35. Bxe5 {[%clk 0:00:16.8]} 35... dxe5 {[%clk 0:00:22.7]}
36. a4 {[%clk 0:00:14]} 36... Ke6 {[%clk 0:00:22.5]} 37. a5 {[%clk 0:00:15]}
37... Rxc4 {[%clk 0:00:23.8]} 38. axb6 {[%clk 0:00:16]} 38... axb6 {[%clk
0:00:25.2]} 39. Rb2 {[%clk 0:00:13.2]} 39... Rxc3 {[%clk 0:00:25.3]} 40. Rbd2
{[%clk 0:00:14.7]} 40... Kf5 {[%clk 0:00:25.3]} 41. Rd7 {[%clk 0:00:14.6]} 41...
b5 {[%clk 0:00:26.5]} 42. Rh7 {[%clk 0:00:11.4]} 42... b4 {[%clk 0:00:27.7]} 43.
Rh5+ {[%clk 0:00:11.1]} 43... Ke6 {[%clk 0:00:28.1]} 44. Rh6+ {[%clk 0:00:11.7]}
44... Kf5 {[%clk 0:00:28.7]} 45. Rh5+ {[%clk 0:00:13.3]} 45... Ke4 {[%clk
0:00:30]} 46. Re1+ {[%clk 0:00:13.7]} 46... Kd3 {[%clk 0:00:30.6]} 47. Rhxe5
{[%clk 0:00:13.9]} 47... c4 {[%clk 0:00:22]} 48. Rd5+ {[%clk 0:00:06.7]} 48...
Kc2 {[%clk 0:00:22.3]} 49. Re2+ {[%clk 0:00:07.1]} 49... Kb3 {[%clk 0:00:23.5]}
50. Rd1 {[%clk 0:00:08]} 50... Rc2 {[%clk 0:00:21.7]} 51. Rb1+ {[%clk
0:00:05.1]} 51... Ka2 {[%clk 0:00:21.6]} 52. Re3 {[%clk 0:00:07]} 52... Kxb1
{[%clk 0:00:22.2]} 0-1

[Event "*** Titled Tuesday Blitz"]
[Site "Chess.com"]
[Date "2018.11.06"]
[Round "3"]
[White "woodhy"]
[Black "gmjlh"]
[Result "1/2-1/2"]
[WhiteElo "2438"]
[BlackElo "2619"]
[TimeControl "180+2"]
[EndTime "13:40:30 PST"]
[Termination "Game drawn by repetition"]

1. e4 {[%clk 0:02:43.8]} 1... c6 {[%clk 0:03:00.5]} 2. d4 {[%clk 0:02:43.9]}
2... d5 {[%clk 0:03:01.8]} 3. Nc3 {[%clk 0:02:45.8]} 3... dxe4 {[%clk
0:03:02.6]} 4. Nxe4 {[%clk 0:02:47.7]} 4... Nf6 {[%clk 0:03:04.1]} 5. Ng3 {[%clk
0:02:43.1]} 5... Bg4 {[%clk 0:02:42.3]} 6. Be2 {[%clk 0:02:38.1]} 6... Bxe2
{[%clk 0:02:42.3]} 7. N1xe2 {[%clk 0:02:40]} 7... e6 {[%clk 0:02:43.5]} 8. c3
{[%clk 0:02:40.3]} 8... Bd6 {[%clk 0:02:44.6]} 9. Bf4 {[%clk 0:02:41.1]} 9...
O-O {[%clk 0:02:41.5]} 10. O-O {[%clk 0:02:36]} 10... Bxf4 {[%clk 0:02:42.1]}
11. Nxf4 {[%clk 0:02:37.9]} 11... Nbd7 {[%clk 0:02:41.3]} 12. Qb3 {[%clk
0:02:37.9]} 12... Qc7 {[%clk 0:02:41.8]} 13. Ngh5 {[%clk 0:02:35.3]} 13... Nxh5
{[%clk 0:02:40.6]} 14. Nxh5 {[%clk 0:02:37.2]} 14... c5 {[%clk 0:02:41.2]} 15.
d5 {[%clk 0:02:28.7]} 15... c4 {[%clk 0:01:20.2]} 16. Qd1 {[%clk 0:02:16.3]}
16... exd5 {[%clk 0:01:20.7]} 17. Qxd5 {[%clk 0:02:18.2]} 17... Rad8 {[%clk
0:01:21.6]} 18. Qg5 {[%clk 0:02:16.7]} 18... g6 {[%clk 0:01:21.7]} 19. Rad1
{[%clk 0:02:13.6]} 19... Qe5 {[%clk 0:01:01.8]} 20. Qxe5 {[%clk 0:01:54.5]}
20... Nxe5 {[%clk 0:01:03.7]} 21. Nf4 {[%clk 0:01:49.5]} 21... Kg7 {[%clk
0:00:59.4]} 22. h4 {[%clk 0:01:43.6]} 22... Rfe8 {[%clk 0:00:40.8]} 23. Rxd8
{[%clk 0:01:39]} 23... Rxd8 {[%clk 0:00:41.2]} 24. Re1 {[%clk 0:01:40.4]} 24...
Kf6 {[%clk 0:00:38.1]} 25. f3 {[%clk 0:01:36.6]} 25... Rd2 {[%clk 0:00:32.4]}
26. Re2 {[%clk 0:01:33.8]} 26... Rxe2 {[%clk 0:00:28.5]} 27. Nxe2 {[%clk
0:01:35.7]} 27... Nd3 {[%clk 0:00:28.8]} 28. b3 {[%clk 0:01:37]} 28... cxb3
{[%clk 0:00:29.3]} 29. axb3 {[%clk 0:01:38.9]} 29... Ke5 {[%clk 0:00:29.2]} 30.
Kf1 {[%clk 0:01:37.5]} 30... a5 {[%clk 0:00:13.1]} 31. Nd4 {[%clk 0:01:37.9]}
31... Kd5 {[%clk 0:00:09.9]} 32. g3 {[%clk 0:01:35.3]} 32... Kc5 {[%clk
0:00:06.6]} 33. Ke2 {[%clk 0:01:36.4]} 33... Ne5 {[%clk 0:00:07]} 34. Kd2 {[%clk
0:01:33.4]} 34... b5 {[%clk 0:00:06.7]} 35. Kc2 {[%clk 0:01:34.8]} 35... Nc6
{[%clk 0:00:04.7]} 36. Ne2 {[%clk 0:01:34]} 36... a4 {[%clk 0:00:05.1]} 37. bxa4
{[%clk 0:01:33.5]} 37... bxa4 {[%clk 0:00:07]} 38. Nc1 {[%clk 0:01:33]} 38...
Na5 {[%clk 0:00:07.8]} 39. Nd3+ {[%clk 0:01:33.7]} 39... Kd6 {[%clk 0:00:06.4]}
40. Kb2 {[%clk 0:01:33.8]} 40... Nc4+ {[%clk 0:00:07]} 41. Ka2 {[%clk
0:01:35.2]} 41... Nd2 {[%clk 0:00:05.9]} 42. Ka3 {[%clk 0:01:34]} 42... Nb1+
{[%clk 0:00:05.6]} 43. Kb2 {[%clk 0:01:34.8]} 43... Nd2 {[%clk 0:00:07]} 44. Ka3
{[%clk 0:01:31.8]} 44... Nxf3 {[%clk 0:00:08.3]} 45. Kxa4 {[%clk 0:01:32.8]}
45... Nd2 {[%clk 0:00:10]} 46. Kb5 {[%clk 0:01:31.6]} 46... Ne4 {[%clk
0:00:09.4]} 47. c4 {[%clk 0:01:31.2]} 47... Nxg3 {[%clk 0:00:10.4]} 48. c5+
{[%clk 0:01:33.1]} 48... Kc7 {[%clk 0:00:11.1]} 49. Ne5 {[%clk 0:01:33.3]} 49...
f5 {[%clk 0:00:10.4]} 50. Nc4 {[%clk 0:01:27.8]} 50... Ne4 {[%clk 0:00:10]} 51.
Ne3 {[%clk 0:01:27.6]} 51... Nf6 {[%clk 0:00:10.9]} 52. Ng2 {[%clk 0:01:26.1]}
52... Nd5 {[%clk 0:00:10.1]} 53. Ne1 {[%clk 0:01:23.2]} 53... h6 {[%clk
0:00:05.9]} 54. Nf3 {[%clk 0:01:24.1]} 54... Nc3+ {[%clk 0:00:04.5]} 55. Kc4
{[%clk 0:01:23.4]} 55... Ne4 {[%clk 0:00:06.4]} 56. Kd5 {[%clk 0:01:24]} 56...
g5 {[%clk 0:00:04.1]} 57. hxg5 {[%clk 0:01:25.9]} 57... hxg5 {[%clk 0:00:06]}
58. Ke5 {[%clk 0:01:27]} 58... g4 {[%clk 0:00:07]} 59. Nh4 {[%clk 0:01:24.9]}
59... g3 {[%clk 0:00:04.3]} 60. Kxf5 {[%clk 0:01:18.8]} 60... Nxc5 {[%clk
0:00:05.3]} 61. Kg4 {[%clk 0:01:19.2]} 61... Ne4 {[%clk 0:00:06]} 62. Kf3 {[%clk
0:01:20.2]} 62... Nf6 {[%clk 0:00:05.9]} 63. Kxg3 {[%clk 0:01:21.2]} 63... Kd6
{[%clk 0:00:07.2]} 64. Kf4 {[%clk 0:01:21.4]} 64... Ke6 {[%clk 0:00:08.2]} 65.
Nf3 {[%clk 0:01:22.2]} 65... Nd5+ {[%clk 0:00:09.3]} 66. Ke4 {[%clk 0:01:23.2]}
66... Nf6+ {[%clk 0:00:11.2]} 67. Kf4 {[%clk 0:01:24.2]} 67... Nd5+ {[%clk
0:00:12.5]} 68. Ke4 {[%clk 0:01:25.9]} 68... Nf6+ {[%clk 0:00:14.4]} 69. Kf4
{[%clk 0:01:27.8]} 69... Nd5+ {[%clk 0:00:16.1]} 70. Ke4 {[%clk 0:01:29.7]}
70... Nf6+ {[%clk 0:00:18]} 71. Kf4 {[%clk 0:01:31.4]} 71... Nd5+ {[%clk
0:00:19.9]} 72. Ke4 {[%clk 0:01:32.8]} 72... Nf6+ {[%clk 0:00:21.8]} 73. Kf4
{[%clk 0:01:34.4]} 1/2-1/2

[Event "*** Titled Tuesday Blitz"]
[Site "Chess.com"]
[Date "2018.11.06"]
[Round "3"]
[White "AlexTriapishko"]
[Black "pulvettd"]
[Result "1-0"]
[WhiteElo "2767"]
[BlackElo "2518"]
[TimeControl "180+2"]
[EndTime "13:40:37 PST"]
[Termination "AlexTriapishko won by checkmate"]

1. e4 {[%clk 0:02:58.5]} 1... c5 {[%clk 0:02:54.7]} 2. Nf3 {[%clk 0:02:59]} 2...
d6 {[%clk 0:02:55.9]} 3. d4 {[%clk 0:03:00.5]} 3... cxd4 {[%clk 0:02:57.3]} 4.
Nxd4 {[%clk 0:03:02.4]} 4... Nf6 {[%clk 0:02:57.3]} 5. Nc3 {[%clk 0:03:04]} 5...
a6 {[%clk 0:02:58.6]} 6. g3 {[%clk 0:03:05.5]} 6... e5 {[%clk 0:02:48.9]} 7. Nf3
{[%clk 0:03:06.4]} 7... h6 {[%clk 0:02:44]} 8. Nh4 {[%clk 0:03:04.8]} 8... Be6
{[%clk 0:02:43.2]} 9. Bg2 {[%clk 0:02:46.2]} 9... Nbd7 {[%clk 0:02:38.1]} 10.
O-O {[%clk 0:02:33.1]} 10... Rc8 {[%clk 0:02:38.2]} 11. a4 {[%clk 0:02:28.2]}
11... Nb6 {[%clk 0:02:23.4]} 12. Re1 {[%clk 0:01:57.8]} 12... Be7 {[%clk
0:02:13.6]} 13. Nf5 {[%clk 0:01:52.8]} 13... Bxf5 {[%clk 0:02:13]} 14. exf5
{[%clk 0:01:54.7]} 14... Qd7 {[%clk 0:02:12.8]} 15. a5 {[%clk 0:01:52.6]} 15...
Nc4 {[%clk 0:02:10.4]} 16. Nd5 {[%clk 0:01:46.8]} 16... Nxd5 {[%clk 0:01:45.9]}
17. Bxd5 {[%clk 0:01:46.3]} 17... Qb5 {[%clk 0:01:32]} 18. b3 {[%clk 0:01:01.9]}
18... Nxa5 {[%clk 0:01:29.2]} 19. c4 {[%clk 0:01:03.2]} 19... Qb6 {[%clk
0:01:27.4]} 20. Be3 {[%clk 0:01:03.3]} 20... Qc7 {[%clk 0:01:28]} 21. Qh5 {[%clk
0:01:03.8]} 21... Rf8 {[%clk 0:01:07.7]} 22. Qg4 {[%clk 0:00:53.7]} 22... Bf6
{[%clk 0:01:02.8]} 23. c5 {[%clk 0:00:48.1]} 23... Nc6 {[%clk 0:00:47.5]} 24.
Rad1 {[%clk 0:00:40.4]} 24... Rd8 {[%clk 0:00:38.5]} 25. cxd6 {[%clk 0:00:38.9]}
25... Rxd6 {[%clk 0:00:35]} 26. Bc5 {[%clk 0:00:37.5]} 26... Rd7 {[%clk
0:00:24.7]} 27. Bxf8 {[%clk 0:00:33.4]} 27... Kxf8 {[%clk 0:00:26.6]} 28. Bxc6
{[%clk 0:00:30.4]} 28... Qxc6 {[%clk 0:00:27.1]} 29. Rxd7 {[%clk 0:00:31]} 29...
Qxd7 {[%clk 0:00:29]} 30. Rd1 {[%clk 0:00:32.5]} 30... Qc6 {[%clk 0:00:27.6]}
31. Qc4 {[%clk 0:00:32.7]} 31... Qe8 {[%clk 0:00:17.8]} 32. Qc7 {[%clk
0:00:32.3]} 32... Kg8 {[%clk 0:00:18.5]} 33. Qxb7 {[%clk 0:00:31.4]} 33... e4
{[%clk 0:00:19.4]} 34. Re1 {[%clk 0:00:25.5]} 34... Qe5 {[%clk 0:00:17.9]} 35.
Qxe4 {[%clk 0:00:23.5]} 35... Qc7 {[%clk 0:00:15.1]} 36. Qa8+ {[%clk 0:00:22.3]}
36... Kh7 {[%clk 0:00:12.3]} 37. Re8 {[%clk 0:00:22.6]} 37... g6 {[%clk
0:00:11.3]} 38. fxg6+ {[%clk 0:00:23.3]} 38... fxg6 {[%clk 0:00:11.5]} 39. Qxa6
{[%clk 0:00:21.5]} 39... Bg7 {[%clk 0:00:10.5]} 40. Qe6 {[%clk 0:00:21.7]} 40...
Qc1+ {[%clk 0:00:07.9]} 41. Kg2 {[%clk 0:00:22.4]} 41... h5 {[%clk 0:00:08.1]}
42. Re7 {[%clk 0:00:23.2]} 42... Kh6 {[%clk 0:00:05.8]} 43. Qd7 {[%clk 0:00:21]}
43... Qc3 {[%clk 0:00:02.1]} 44. Rxg7 {[%clk 0:00:21.2]} 44... Qxg7 {[%clk
0:00:02.7]} 45. Qxg7+ {[%clk 0:00:22.7]} 45... Kxg7 {[%clk 0:00:04.6]} 46. b4
{[%clk 0:00:24.5]} 46... Kf6 {[%clk 0:00:06.5]} 47. Kf3 {[%clk 0:00:25.1]} 47...
Ke6 {[%clk 0:00:08.4]} 48. h4 {[%clk 0:00:26.2]} 48... Kd6 {[%clk 0:00:10.3]}
49. Kf4 {[%clk 0:00:27.7]} 49... Kc6 {[%clk 0:00:12.2]} 50. Kg5 {[%clk
0:00:29.1]} 50... Kb5 {[%clk 0:00:14.1]} 51. Kxg6 {[%clk 0:00:30.6]} 51... Kxb4
{[%clk 0:00:16]} 52. Kxh5 {[%clk 0:00:32.1]} 52... Kc5 {[%clk 0:00:17.9]} 53. f4
{[%clk 0:00:33.1]} 53... Kd5 {[%clk 0:00:19.1]} 54. f5 {[%clk 0:00:34.5]} 54...
Kd4 {[%clk 0:00:21]} 55. f6 {[%clk 0:00:35.1]} 55... Kd3 {[%clk 0:00:22.9]} 56.
f7 {[%clk 0:00:36.4]} 56... Kd2 {[%clk 0:00:24.8]} 57. f8=Q {[%clk 0:00:37.2]}
57... Ke2 {[%clk 0:00:26.7]} 58. g4 {[%clk 0:00:37.1]} 58... Ke3 {[%clk
0:00:25]} 59. g5 {[%clk 0:00:38.4]} 59... Ke4 {[%clk 0:00:26.9]} 60. g6 {[%clk
0:00:39.4]} 60... Ke3 {[%clk 0:00:28.8]} 61. g7 {[%clk 0:00:40.4]} 61... Ke4
{[%clk 0:00:30.7]} 62. g8=Q {[%clk 0:00:40.8]} 62... Ke5 {[%clk 0:00:32.6]} 63.
Qg5+ {[%clk 0:00:41.5]} 63... Ke6 {[%clk 0:00:34.5]} 64. Qff6+ {[%clk
0:00:42.6]} 64... Kd7 {[%clk 0:00:33.1]} 65. Qgg7+ {[%clk 0:00:44]} 65... Kc8
{[%clk 0:00:33.3]} 66. Qff8# {[%clk 0:00:45.5]} 1-0